bitfinex-derivatives/quotes_SOLF0:USTF0_20250923
["timestamp","ask_amount","ask_price","bid_price","bid_amount"]
[1758621978944,1.91593039,218.48,218.39,5.06769212]
[1758621979143,7.66,218.47,218.38,11.17362251]
[1758621979340,7.66,218.47,218.38,6.10593039]
[1758621980444,7.66,218.47,218.4,4.19]
[1758621982252,7.66,218.47,218.41,1.91593039]
[1758621983257,7.66,218.47,218.41,6.03403039]
[1758621986662,7.66,218.47,218.41,1.91593039]
[1758621988458,7.66,218.47,218.41,6.03403039]
[1758621988860,7.66,218.47,218.44,4.19]
[1758621990057,7.66,218.52,218.43,10.22363039]
[1758621992056,7.66,218.52,218.45,4.1173]
[1758621992262,7.66,218.52,218.46,4.17]
[1758621992564,7.66,218.52,218.47,6.03283039]
[1758621992758,7.52,218.58,218.49,6.08593039]
[1758621993157,7.52,218.58,218.49,1.91593039]
[1758621994564,7.52,218.58,218.48,8.2866]
[1758621995557,7.52,218.58,218.47,2.9935352]
[1758621995558,7.52,218.58,218.5,4.17]
[1758621996360,7.52,218.58,218.51,4.17]
[1758621997756,7.52,218.58,218.52,4.116]
[1758622003164,7.52,218.58,218.46,4.117]
[1758622003470,7.52,218.58,218.47,4.17]
[1758622006571,7.52,218.56,218.45,4.1173]
[1758622008576,7.52,218.56,218.47,4.117]
[1758622009084,7.52,218.56,218.46,4.17]
[1758622013477,7.52,218.56,218.47,4.117]
[1758622019583,7.52,218.56,218.48,8.2866]
[1758622020479,7.52,218.61,218.5,7.1635352]
[1758622020683,7.52,218.61,218.51,4.18]
[1758622021978,7.52,218.61,218.52,4.1159]
[1758622022175,7.52,218.61,218.53,4.18]
[1758622024185,7.52,218.61,218.53,8.2957]
[1758622027686,7.52,218.61,218.55,4.1154]
[1758622027887,7.52,218.61,218.53,4.18]
[1758622028092,7.52,218.61,218.49,4.18]
[1758622028288,2.9935352,218.57,218.45,4.1173]
[1758622028590,7.24,218.53,218.45,4.1173]
[1758622030389,11.3559,218.53,218.43,8.2977]
[1758622030587,7.24,218.53,218.43,8.2977]
[1758622030788,7.24,218.53,218.43,4.18]
[1758622032791,7.24,218.53,218.45,4.1173]
[1758622033190,7.24,218.57,218.46,4.18]
[1758622033683,7.24,218.57,218.48,4.1166]
[1758622034286,7.24,218.55,218.46,4.18]
[1758622034793,7.24,218.55,218.46,8.297]
[1758622036890,7.24,218.55,218.48,4.1167]
[1758622037095,7.24,218.55,218.46,4.18]
[1758622037592,50.7335352,218.59,218.5,4.1164]
[1758622037792,7.04,218.58,218.5,4.1164]
[1758622038896,7.04,218.58,218.52,4.116]
[1758622041693,7.04,218.58,218.51,4.19]
[1758622043106,7.04,218.58,218.46,4.19]
[1758622043404,7.04,218.55,218.46,4.19]
[1758622043801,7.04,218.55,218.47,4.19]
[1758622049507,7.04,218.55,218.47,8.3068]
[1758622051508,7.04,218.55,218.47,4.19]
[1758622055808,69.06252706,218.64,218.47,4.19]
[1758622055809,7.67,218.63,218.48,64.0388]
[1758622056012,7.67,218.61,218.5,4.18]
[1758622056701,7.67,218.59,218.5,6.09569544]
[1758622057207,7.67,218.59,218.51,1.91569544]
[1758622059112,1.91569544,218.56,218.47,5.06769212]
[1758622059310,1.91569544,218.54,218.46,8.297]
[1758622061117,1.91569544,218.54,218.38,64.0669]
[1758622061118,7.67,218.51,218.42,11.16338756]
[1758622062309,7.67,218.51,218.42,6.09569544]
[1758622062914,7.67,218.51,218.42,10.21359544]
[1758622063512,7.67,218.51,218.44,1.91569544]
[1758622063713,7.67,218.51,218.45,4.18]
[1758622064818,7.67,218.51,218.45,8.2972]
[1758622066219,7.67,218.55,218.47,4.18]
[1758622067521,7.67,218.6,218.52,1.91569544]
[1758622070123,7.67,218.6,218.52,6.09569544]
[1758622070514,7.67,218.6,218.55,1.91569544]
[1758622070720,7.67,218.6,218.55,6.09569544]
[1758622071014,7.67,218.64,218.56,4.18]
[1758622071518,7.67,218.64,218.57,1.91569544]
[1758622072819,7.67,218.64,218.57,6.03069544]
[1758622073318,7.67,218.64,218.57,1.91569544]
[1758622076025,7.67,218.64,218.58,4.1148]
[1758622076818,7.67,218.64,218.59,1.91569544]
[1758622077017,7.67,218.64,218.6,4.18]
[1758622077214,7.67,218.64,218.6,8.2945]
[1758622078925,7.67,218.68,218.6,8.2945]
[1758622079122,7.67,218.68,218.62,4.1141]
[1758622079323,7.67,218.68,218.62,8.2941]
[1758622081442,7.67,218.68,218.65,4.19]
[1758622081924,7.72,218.73,218.65,4.19]
[1758622082931,7.72,218.73,218.66,4.1134]
[1758622083423,7.72,218.73,218.65,4.19]
[1758622084930,7.72,218.75,218.68,1.91569544]
[1758622085232,7.72,218.75,218.7,1.91569544]
[1758622085431,7.72,218.8,218.72,10.21789544]
[1758622086435,7.72,218.8,218.74,6.02749544]
[1758622086826,7.72,218.8,218.75,4.19]
[1758622087127,7.72,218.8,218.77,1.91569544]
[1758622087327,7.72,218.83,218.77,1.91569544]
[1758622088133,7.72,218.83,218.75,4.19]
[1758622088329,7.72,218.83,218.75,6.10569544]
[1758622088534,7.72,218.83,218.77,1.91569544]
[1758622089531,7.72,218.83,218.75,4.19]
[1758622091533,7.72,218.81,218.71,1.91569544]
[1758622093339,7.72,218.81,218.7,4.19]
[1758622093631,7.72,218.79,218.7,6.10569544]
[1758622095642,7.72,218.77,218.68,1.91569544]
[1758622096933,7.72,218.75,218.66,10.21899544]
[1758622099735,1.91569544,218.76,218.66,10.21899544]
[1758622099938,7.24,218.75,218.66,10.21899544]
[1758622100439,7.24,218.75,218.69,6.10569544]
[1758622100938,7.24,218.75,218.68,4.113]
[1758622104848,7.24,218.75,218.66,4.19]
[1758622105350,7.24,218.75,218.67,4.1132]
[1758622108247,7.24,218.75,218.69,4.1128]
[1758622109748,7.24,218.75,218.66,6.10569544]
[1758622109948,7.24,218.75,218.67,4.19]
[1758622110146,7.24,218.75,218.68,1.91569544]
[1758622110342,7.24,218.75,218.67,4.19]
[1758622110850,7.24,218.75,218.67,6.10569544]
[1758622114554,7.24,218.75,218.67,4.19]
[1758622115656,1.91569544,218.73,218.64,100.64512615]
[1758622115855,7.56,218.72,218.64,100.64512615]
[1758622118860,7.56,218.72,218.63,4.18]
[1758622124162,4.1125,218.71,218.59,11.28406149]
[1758622124753,4.113,218.69,218.59,4.18]
[1758622125063,7.56,218.68,218.59,4.18]
[1758622125564,7.56,218.66,218.59,4.18]
[1758622126966,7.56,218.66,218.56,4.18]
[1758622128374,7.56,218.64,218.56,4.18]
[1758622128668,7.56,218.64,218.53,8.2958]
[1758622129075,7.56,218.64,218.53,4.18]
[1758622130872,7.56,218.61,218.53,4.18]
[1758622132974,7.56,218.61,218.53,8.2957]
[1758622134979,7.56,218.61,218.53,4.18]
[1758622135277,7.56,218.61,218.51,4.1162]
[1758622136378,7.56,218.61,218.52,4.18]
[1758622136572,7.56,218.61,218.53,4.18]
[1758622140480,7.04,218.66,218.55,4.18]
[1758622140975,7.04,218.66,218.56,4.1153]
[1758622141280,7.04,218.66,218.57,4.19]
[1758622142781,7.04,218.66,218.59,4.1146]
[1758622143281,7.04,218.66,218.6,4.19]
[1758622143676,7.04,218.66,218.57,2.98956149]
[1758622143882,7.04,218.66,218.57,7.17956149]
[1758622144685,7.04,218.66,218.58,4.1149]
[1758622144887,7.04,218.66,218.57,4.19]
[1758622145081,7.04,218.66,218.53,4.1158]
[1758622147784,7.04,218.62,218.54,4.1155]
[1758622148084,7.04,218.62,218.54,8.3055]
[1758622148283,7.04,218.62,218.54,4.19]
[1758622153690,11.1543,218.62,218.54,4.19]
[1758622154185,2.98956149,218.67,218.54,4.19]
[1758622154385,7.18,218.66,218.55,4.19]
[1758622155891,7.18,218.66,218.56,4.1152]
[1758622156393,7.18,218.66,218.57,4.19]
[1758622160796,7.18,218.66,218.59,4.1147]
[1758622162201,7.18,218.66,218.57,4.19]
[1758622166199,11.2935,218.66,218.57,4.19]
[1758622169402,11.2935,218.66,218.58,4.1149]
[1758622172799,7.53,218.64,218.57,4.19]
[1758622175404,7.53,218.64,218.53,8.3058]
[1758622177006,7.53,218.61,218.54,4.1155]
[1758622177504,7.53,218.61,218.55,4.19]
[1758622186208,7.53,218.61,218.55,8.3053]
[1758622191209,7.53,218.61,218.55,10.22025995]
[1758622192713,33.9,218.68,218.55,10.22025995]
[1758622192714,7.53,218.66,218.58,4.19]
[1758622193015,7.53,218.66,218.61,1.91495995]
[1758622193615,7.53,218.66,218.62,4.19]
[1758622194212,7.53,218.66,218.61,1.91495995]
[1758622194918,7.53,218.69,218.62,4.19]
[1758622195114,1.91495995,218.66,218.58,8.3049]
[1758622195320,7.53,218.65,218.58,8.3049]
[1758622195814,7.53,218.65,218.58,4.19]
[1758622196017,1.91495995,218.66,218.55,8.3053]
[1758622196018,7.53,218.63,218.55,8.3053]
[1758622196514,7.53,218.63,218.57,4.19]
[1758622197419,7.53,218.63,218.57,8.3049]
[1758622201622,7.45,218.65,218.58,3.85185015]
[1758622202725,7.45,218.65,218.58,7.96655015]
[1758622202926,7.45,218.65,218.59,4.18]
[1758622203229,7.45,218.65,218.59,8.03185015]
[1758622205221,7.45,218.67,218.6,4.1143]
[1758622205420,7.45,218.67,218.6,7.96615015]
[1758622205822,7.45,218.67,218.6,4.1143]
[1758622206227,1.91495995,218.72,218.62,1.91495995]
[1758622206428,7.45,218.71,218.63,4.18]
[1758622206930,7.45,218.69,218.63,4.18]
[1758622207526,7.45,218.69,218.63,8.2938]
[1758622209130,1.91495995,218.72,218.62,5.7668101]
[1758622209323,7.45,218.71,218.64,6.09495995]
[1758622209728,7.45,218.73,218.66,4.1132]
[1758622212632,7.45,218.73,218.64,6.09495995]
[1758622215339,7.45,218.73,218.64,1.91495995]
[1758622216236,7.45,218.71,218.63,8.2938]
[1758622216941,7.45,218.71,218.64,4.1136]
[1758622217141,7.45,218.71,218.64,4.18]
[1758622217343,7.45,218.71,218.64,6.09495995]
[1758622217538,7.45,218.71,218.64,1.91495995]
[1758622217743,7.45,218.71,218.65,4.19]
[1758622218647,7.45,218.71,218.67,4.1131]
[1758622218837,7.45,218.71,218.67,8.3031]
[1758622219441,7.17,218.74,218.67,8.3031]
[1758622219642,7.17,218.72,218.67,8.3031]
[1758622219851,7.17,218.75,218.67,4.1131]
[1758622220144,7.17,218.71,218.65,4.1136]
[1758622220342,7.17,218.71,218.64,4.19]
[1758622222350,7.17,218.67,218.61,8.04185015]
[1758622222542,7.17,218.67,218.61,4.19]
[1758622223850,7.17,218.67,218.61,8.3043]
[1758622224555,1.91495995,218.68,218.62,4.114]
[1758622224752,9.08495995,218.68,218.62,4.114]
[1758622225046,7.17,218.68,218.62,4.114]
[1758622225350,65.28318242,218.76,218.66,4.19]
[1758622225351,7.17,218.72,218.66,4.19]
[1758622227744,7.17,218.72,218.66,8.3032]
[1758622230449,7.17,218.72,218.67,4.113]
[1758622230641,9.63495995,218.74,218.67,8.303]
[1758622230844,9.63495995,218.74,218.67,4.19]
[1758622231748,9.63495995,218.74,218.68,4.1128]
[1758622232146,7.72,218.74,218.68,4.1128]
[1758622232352,7.72,218.74,218.67,6.10495995]
[1758622233750,7.72,218.74,218.69,4.1127]
[1758622233955,7.72,218.75,218.69,4.1127]
[1758622234757,7.72,218.75,218.67,6.10495995]
[1758622235558,9.63495995,218.75,218.67,6.10495995]
[1758622237254,7.72,218.75,218.67,6.10495995]
[1758622237459,9.63495995,218.75,218.67,6.10495995]
[1758622239465,7.72,218.75,218.67,4.19]
[1758622239668,9.63495995,218.75,218.67,4.19]
[1758622240565,7.72,218.75,218.67,4.19]
[1758622241261,7.72,218.75,218.6,64.0031]
[1758622241262,7.72,218.73,218.63,3.84082558]
[1758622241667,79.82,218.72,218.62,3.84082558]
[1758622241968,10.70905912,218.71,218.62,3.84082558]
[1758622242667,10.70905912,218.71,218.62,8.03082558]
[1758622242965,7.72,218.69,218.62,8.03082558]
[1758622243963,7.72,218.69,218.62,12.14492558]
[1758622244155,7.72,218.69,218.63,4.19]
[1758622244564,7.72,218.72,218.64,3.84082558]
[1758622244867,7.72,218.72,218.65,4.19]
[1758622249073,7.72,218.72,218.65,8.03387447]
[1758622249570,7.72,218.72,218.66,3.84387447]
[1758622251272,7.72,218.72,218.66,3.84836157]
[1758622251465,7.72,218.75,218.67,3.84836157]
[1758622252775,7.72,218.75,218.67,8.03836157]
[1758622255268,7.72,218.75,218.68,3.84836157]
[1758622255475,7.72,218.75,218.69,4.19]
[1758622255769,7.72,218.75,218.71,4.19]
[1758622256072,7.72,218.75,218.7,3.84836157]
[1758622256367,7.72,218.75,218.71,4.19]
[1758622257068,7.72,218.75,218.7,3.84836157]
[1758622257373,7.72,218.75,218.7,4.19]
[1758622257773,7.72,218.75,218.69,7.96106157]
[1758622257965,7.72,218.75,218.7,4.19]
[1758622258564,7.72,218.75,218.69,7.96106157]
[1758622258875,7.72,218.75,218.69,12.14933792]
[1758622266080,7.72,218.75,218.7,4.1125]
[1758622266476,7.72,218.75,218.71,4.18]
[1758622266880,7.53,218.78,218.71,8.2923]
[1758622267184,7.53,218.78,218.72,4.18]
[1758622267784,7.53,218.78,218.74,3.84663792]
[1758622267980,7.53,218.81,218.75,4.18]
[1758622268377,7.53,218.81,218.75,8.02663792]
[1758622268675,2.98905912,218.85,218.74,3.84663792]
[1758622268878,7.53,218.84,218.74,3.84663792]
[1758622269277,11.64,218.84,218.74,3.84663792]
[1758622269883,11.64,218.84,218.73,3.84663792]
[1758622271886,7.72,218.84,218.72,3.84663792]
[1758622272079,7.72,218.84,218.71,7.95893792]
[1758622272682,2.98905912,218.85,218.72,12.13873792]
[1758622272886,346.43561952,218.87,218.74,63.9629]
[1758622273079,7.72,218.86,218.76,8.02663792]
[1758622273786,7.72,218.86,218.76,3.84663792]
[1758622273986,7.72,218.86,218.78,4.111]
[1758622274989,7.72,218.86,218.79,8.2908]
[1758622275185,7.72,218.86,218.8,4.18]
[1758622276187,7.72,218.86,218.77,3.84663792]
[1758622276394,7.72,218.86,218.76,4.18]
[1758622276693,7.72,218.86,218.76,8.02663792]
[1758622277288,7.72,218.86,218.76,4.18]
[1758622282296,7.72,218.86,218.76,8.2913]
[1758622282698,7.72,218.86,218.75,2.98905912]
[1758622282900,7.72,218.86,218.76,4.18]
[1758622283804,7.72,218.86,218.78,4.111]
[1758622284005,7.72,218.86,218.79,4.18]
[1758622291707,11.8296,218.86,218.79,4.18]
[1758622291915,11.8296,218.86,218.76,4.18]
[1758622293308,7.72,218.86,218.76,4.18]
[1758622293714,11.8297,218.86,218.76,4.18]
[1758622295008,7.3,218.83,218.74,4.1118]
[1758622295314,4.1106,218.82,218.73,4.18]
[1758622295511,7.3,218.81,218.73,4.18]
[1758622296109,11.4107,218.81,218.73,4.18]
[1758622296815,4.1109,218.8,218.73,4.18]
[1758622297010,7.3,218.79,218.7,8.02663792]
[1758622297211,7.3,218.79,218.7,4.18]
[1758622297512,7.3,218.79,218.7,8.02663792]
[1758622297705,7.3,218.79,218.7,4.18]
[1758622297904,4.1112,218.78,218.7,4.18]
[1758622298109,10.28905912,218.77,218.67,2.52984]
[1758622299813,7.3,218.74,218.67,2.52984]
[1758622302817,9.21307461,218.74,218.67,2.52984]
[1758622306219,7.3,218.74,218.67,2.52984]
[1758622306419,7.3,218.74,218.67,4.44291461]
[1758622309921,7.3,218.74,218.68,4.18]
[1758622321626,7.3,218.74,218.67,4.44291461]
[1758622322622,7.3,218.74,218.67,8.62291461]
[1758622323524,7.3,218.74,218.67,6.70984]
[1758622323724,7.01,218.71,218.67,2.52984]
[1758622323928,63.9525,218.78,218.67,2.52984]
[1758622323929,200.45381846,218.78,218.67,2.52984]
[1758622324129,1.91307461,218.72,218.67,2.52984]
[1758622324333,7.01,218.71,218.67,2.52984]
[1758622324926,1.91307461,218.72,218.67,2.52984]
[1758622325827,7.01,218.71,218.67,2.52984]
[1758622326027,1.91307461,218.72,218.67,2.52984]
[1758622326518,7.01,218.71,218.67,2.52984]
[1758622326725,7.01,218.75,218.68,4.18]
[1758622328030,1.91307461,218.72,218.67,2.52984]
[1758622328729,7.01,218.71,218.67,2.52984]
[1758622328930,1.91307461,218.72,218.67,2.52984]
[1758622329121,7.01,218.71,218.67,2.52984]
[1758622329325,1.91307461,218.72,218.67,2.52984]
[1758622330424,7.01,218.71,218.67,2.52984]
[1758622330628,1.91307461,218.72,218.67,2.52984]
[1758622330932,7.01,218.71,218.67,2.52984]
[1758622331133,1.91307461,218.72,218.67,2.52984]
[1758622332029,7.24,218.71,218.67,2.52984]
[1758622332229,7.24,218.73,218.67,2.52984]
[1758622332435,7.24,218.71,218.67,2.52984]
[1758622332630,1.91307461,218.72,218.67,2.52984]
[1758622332828,7.24,218.71,218.67,2.52984]
[1758622333034,1.91307461,218.72,218.67,2.52984]
[1758622333739,6.02507461,218.74,218.67,6.71984]
[1758622333936,7.24,218.73,218.67,6.71984]
[1758622334333,7.24,218.71,218.67,2.52984]
[1758622335038,1.91307461,218.72,218.67,2.52984]
[1758622335239,7.24,218.71,218.67,2.52984]
[1758622335435,1.91307461,218.72,218.67,2.52984]
[1758622335837,7.24,218.71,218.67,2.52984]
[1758622336339,1.91307461,218.72,218.67,2.52984]
[1758622336540,7.24,218.71,218.67,2.52984]
[1758622336742,1.91307461,218.72,218.67,2.52984]
[1758622336938,7.24,218.71,218.67,2.52984]
[1758622337137,1.91307461,218.72,218.67,2.52984]
[1758622337844,7.24,218.7,218.67,2.52984]
[1758622338045,4.1125,218.71,218.67,2.52984]
[1758622338641,4.1128,218.7,218.67,2.52984]
[1758622339044,7.24,218.69,218.67,2.52984]
[1758622339241,4.1128,218.7,218.67,2.52984]
[1758622339740,7.24,218.69,218.67,2.52984]
[1758622340339,7.24,218.68,218.67,2.52984]
[1758622345755,111.36,218.69,218.67,2.52984]
[1758622345952,118.6,218.69,218.67,2.52984]
[1758622346245,7.24,218.68,218.67,2.52984]
[1758622349352,7.24,218.7,218.67,2.52984]
[1758622349552,111.36,218.7,218.67,2.52984]
[1758622349754,111.36,218.7,218.68,4.19]
[1758622349954,118.6,218.7,218.68,4.19]
[1758622353665,118.6,218.7,218.68,4.18]
[1758622353666,111.36,218.7,218.68,4.18]
[1758622354068,111.36,218.71,218.68,4.18]
[1758622354260,118.92,218.71,218.68,4.18]
[1758622354962,111.36,218.71,218.68,4.18]
[1758622355168,7.56,218.7,218.67,2.52984]
[1758622355867,111.36,218.71,218.67,2.52984]
[1758622356259,7.56,218.7,218.67,2.52984]
[1758622357461,7.56,218.7,218.67,6.70984]
[1758622357668,7.56,218.75,218.67,2.52984]
[1758622357861,111.34,218.74,218.68,6.09307461]
[1758622358062,111.34,218.74,218.72,4.18]
[1758622358271,145.52826021,218.78,218.72,4.18]
[1758622358569,118.9,218.77,218.74,4.18]
[1758622359070,111.34,218.77,218.74,4.18]
[1758622359368,118.9,218.77,218.74,4.18]
[1758622360268,111.34,218.77,218.73,1.91307461]
[1758622360456,7.56,218.76,218.73,1.91307461]
[1758622360661,7.56,218.76,218.73,6.09307461]
[1758622361666,111.34,218.77,218.71,1.91307461]
[1758622361866,7.56,218.76,218.71,1.91307461]
[1758622362067,118.9,218.85,218.75,9.93971253]
[1758622362268,118.9,218.85,218.75,6.09307461]
[1758622362460,7.56,218.83,218.72,1.91307461]
[1758622362663,7.56,218.83,218.71,8.02663792]
[1758622362868,7.56,218.83,218.71,4.18]
[1758622363260,7.56,218.79,218.71,4.18]
[1758622363563,7.56,218.77,218.71,4.18]
[1758622363763,118.96,218.77,218.71,4.18]
[1758622376174,118.96,218.77,218.68,2.98776946]
[1758622376778,118.96,218.77,218.68,7.16776946]
[1758622377180,4.1115,218.76,218.68,2.98776946]
[1758622377381,7.56,218.75,218.67,2.52984]
[1758622382081,11.6719,218.75,218.67,2.52984]
[1758622382679,4.1121,218.73,218.67,2.52984]
[1758622382883,7.25,218.72,218.67,2.52984]
[1758622383774,4.1124,218.71,218.67,2.52984]
[1758622383980,175.3564,218.77,218.67,2.52984]
[1758622384180,7.25,218.76,218.67,2.52984]
[1758622385785,4.1119,218.74,218.67,2.52984]
[1758622385984,7.25,218.73,218.67,2.52984]
[1758622389685,4.1143,218.61,218.56,3.83913762]
[1758622389886,4.1143,218.61,218.44,7.68321118]
[1758622389887,118.57,218.6,218.44,7.68321118]
[1758622390088,118.57,218.6,218.45,6.69]
[1758622390288,7.25,218.58,218.45,6.69]
[1758622390487,7.25,218.56,218.45,6.69]
[1758622390791,8.8260331,218.55,218.45,6.69]
[1758622390990,8.8260331,218.54,218.45,6.69]
[1758622391188,6.86240045,218.53,218.46,3.93915975]
[1758622391485,3.5503553,218.52,218.47,3.93915975]
[1758622391691,7.25,218.56,218.49,6.73]
[1758622391880,7.25,218.56,218.5,3.93915975]
[1758622391881,6.55176581,218.55,218.5,3.93915975]
[1758622392084,3.17254024,218.54,218.52,6.73]
[1758622392284,7.25,218.56,218.52,6.73]
[1758622392484,7.25,218.56,218.53,5.42503208]
[1758622392689,7.25,218.56,218.54,5.42503208]
[1758622392884,7.25,218.56,218.55,5.42503208]
[1758622393286,7.4,218.6,218.55,5.42503208]
[1758622393491,7.4,218.6,218.56,5.42503208]
[1758622393695,58.2,218.61,218.57,5.42503208]
[1758622393888,58.2,218.61,218.58,5.42503208]
[1758622394096,7.4,218.6,218.59,5.42503208]
[1758622404194,4.1149,218.58,218.52,6.73]
[1758622404401,3.60094234,218.57,218.54,6.73]
[1758622404596,4.1149,218.58,218.55,3.97483238]
[1758622404795,3.60094162,218.57,218.56,3.97483238]
[1758622405190,11.5149,218.58,218.56,3.97483238]
[1758622405395,11.5149,218.58,218.57,3.97483238]
[1758622405695,18.12630394,218.58,218.57,3.97483238]
[1758622407202,15.11519348,218.58,218.57,3.97483238]
[1758622408302,18.03166807,218.58,218.57,3.97483238]
[1758622411692,18.03166807,218.58,218.48,4.1167]
[1758622411897,3.60029348,218.57,218.5,6.72]
[1758622412092,3.60029348,218.56,218.51,3.97498091]
[1758622412299,11.5149,218.58,218.52,3.97498091]
[1758622412507,3.59790307,218.57,218.54,6.72]
[1758622412701,3.59790307,218.56,218.55,10.69498091]
[1758622413907,5.53017656,218.56,218.55,10.69498091]
[1758622415407,3.59790307,218.56,218.55,10.69498091]
[1758622415600,4.1144,218.61,218.56,6.72]
[1758622415801,5.45298781,218.6,218.57,3.97498091]
[1758622416000,3.60084368,218.59,218.58,10.69498091]
[1758622421208,5.4225914,218.59,218.58,10.69498091]
[1758622422107,3.60084368,218.59,218.58,10.69498091]
[1758622422509,3.60084368,218.59,218.58,6.72]
[1758622422708,3.60084368,218.59,218.58,10.70711792]
[1758622423908,11.7139,218.64,218.58,10.70711792]
[1758622424108,3.48149879,218.63,218.59,3.98711792]
[1758622424313,3.48149879,218.62,218.6,10.70711792]
[1758622424607,3.48149879,218.61,218.6,6.72]
[1758622425406,3.48149879,218.61,218.57,6.72]
[1758622425407,11.08149879,218.61,218.57,6.72]
[1758622425610,3.48149879,218.6,218.56,1.9146258]
[1758622425913,4.1142,218.62,218.56,1.9146258]
[1758622426215,3.46637176,218.61,218.56,1.9146258]
[1758622426419,3.46637176,218.6,218.57,6.72]
[1758622426618,4.1142,218.62,218.56,1.9146258]
[1758622426913,3.468094,218.61,218.57,6.72]
[1758622427116,3.468094,218.6,218.57,6.72]
[1758622427415,3.468094,218.59,218.57,6.72]
[1758622427616,4.1142,218.62,218.56,1.9146258]
[1758622427818,3.46994737,218.61,218.56,1.9146258]
[1758622428013,3.46994737,218.6,218.57,6.72]
[1758622428223,3.46994737,218.59,218.56,1.9146258]
[1758622428411,4.1142,218.62,218.56,1.9146258]
[1758622428613,3.47055167,218.61,218.57,6.72]
[1758622428807,3.47055167,218.6,218.56,1.9146258]
[1758622429012,3.47055167,218.59,218.56,1.9146258]
[1758622429220,4.1142,218.62,218.56,1.9146258]
[1758622429414,11.07187796,218.61,218.57,6.72]
[1758622429622,3.47187796,218.6,218.56,1.9146258]
[1758622429820,3.47187796,218.59,218.56,1.9146258]
[1758622430017,7.6,218.61,218.56,1.9146258]
[1758622430210,3.42241268,218.6,218.57,6.72]
[1758622430411,3.42241268,218.59,218.56,1.9146258]
[1758622430616,7.6,218.61,218.56,1.9146258]
[1758622430818,3.4239669,218.6,218.56,1.9146258]
[1758622431011,3.4239669,218.59,218.56,1.9146258]
[1758622431211,4.1138,218.65,218.57,6.72]
[1758622431422,12.16912236,218.64,218.57,6.72]
[1758622431626,3.42573934,218.63,218.57,6.72]
[1758622431917,3.42573934,218.62,218.56,1.9146258]
[1758622432115,4.1138,218.65,218.57,6.72]
[1758622432116,3.42573934,218.61,218.57,6.72]
[1758622432423,3.42573934,218.6,218.57,6.72]
[1758622432626,4.1138,218.65,218.57,6.72]
[1758622432821,4.53311861,218.64,218.59,6.72]
[1758622433028,3.38974361,218.63,218.59,6.72]
[1758622433323,20.18,218.66,218.59,6.72]
[1758622433623,3.3922884,218.65,218.59,6.72]
[1758622433823,3.3922884,218.64,218.59,6.72]
[1758622434012,3.3922884,218.63,218.59,6.72]
[1758622434218,3.39357867,218.62,218.59,6.72]
[1758622434522,20.18,218.66,218.61,1.9146258]
[1758622434717,3.39358083,218.65,218.62,6.72]
[1758622434915,3.39358083,218.64,218.62,6.72]
[1758622435115,3.39358083,218.63,218.62,6.72]
[1758622439130,20.18,218.66,218.62,6.72]
[1758622439330,10.94082089,218.65,218.62,6.72]